Cogmind - Beta 13 @@@ ROGUE MODE // 2024.04.08 @ 11:22:09 Player: Calliope Result: Destroyed by as-62021 with Assembled Blade Performance ------------- Evolutions (3) 1500 Regions Visited (5) 1000 Robots Destroyed (52) 260 Value Destroyed (1690) 1690 Prototype IDs (0) 0 Alien Tech Used (0) 0 Bonus (500) 500 TOTAL SCORE: 4950 Bonus ------- Entered DSFs 500 Cogmind --------- Core Integrity 0/700 Matter 271/300 Energy 80/100 System Corruption 2% Temperature Cool (20) Movement Core (1450) Ox28 Location -7/DSF Parts ------- > --- POWER (1) -------- (None) > --- PROPULSION (4) --- (None) > --- UTILITY (6) ------ Huge Storage Unit > --- WEAPON (2) ------- Shock Bomb Launcher > --- INVENTORY (25) --- Light Treads Light Treads Hover Unit Hover Unit Flight Unit Flight Unit VTOL Module VTOL Module VTOL Module Improved Sensor Array Improved Signal Interpreter Minigun Gauss Rifle Flak Cannon Flak Cannon Flak Cannon Mining Laser Welding Torch Peak State ------------ > --- POWER ------------ Light Nuclear Core > --- PROPULSION ------- Light Treads Light Treads Light Treads Armored Treads > --- UTILITY ---------- Huge Storage Unit Targeting Computer Targeting Computer Target Analyzer Target Analyzer Hardened Medium Armor Plating > --- WEAPON ----------- Gauss Rifle Gauss Cannon > --- INVENTORY -------- Deuterium Engine Light Treads Light Treads Light Treads Hover Unit Hover Unit Flight Unit Flight Unit VTOL Module VTOL Module VTOL Module Improved Sensor Array Improved Signal Interpreter Improved Terrain Scanner Minigun High-powered Shotgun High-powered Shotgun High-powered Shotgun Flak Cannon Flak Cannon Flak Cannon Shock Bomb Launcher Mining Laser Welding Torch Great Maul [Rating: 34] Favorites ----------- Power Ion Engine Engine Ion Engine Power Core Light Nuclear Core Propulsion Light Treads Treads Light Treads Leg Aluminum Leg Utility Targeting Computer Device Sensor Array Storage Huge Storage Unit Processor Targeting Computer Protection Hardened Medium Armor Plating Weapon Assault Rifle Energy Gun Small Laser Ballistic Gun Assault Rifle Ballistic Cannon Flak Cannon Launcher Rocket Launcher Impact Weapon Great Maul Build | -11 -10 -9 -8 -7 -7 ------- Run | Yrd Mat Mat Mat Fac DSF Slots Evolved 6 | . . 2 2 2 . Power . | . . . . . . Propulsion 2 | . . . 1 1 . Utility 4 | . . 2 1 1 . Weapon . | . . . . . . Parts Attached 60 | 8 23 8 11 2 8 Power 8 | 1 3 1 2 . 1 Engine 6 | 1 3 1 . . 1 Core 2 | . . . 2 . . Reactor . | . . . . . . Propulsion 16 | 2 8 2 2 1 1 Treads 14 | 2 6 2 2 1 1 Leg 2 | . 2 . . . . Wheel . | . . . . . . Hover . | . . . . . . Flight . | . . . . . . Utility 14 | 1 7 2 2 1 1 Device 3 | . 2 . . . 1 Storage 3 | 1 2 . . . . Processor 6 | . 3 1 1 1 . Hackware . | . . . . . . Protection 2 | . . 1 1 . . Artifact . | . . . . . . Weapon 22 | 4 5 3 5 . 5 Energy Gun 3 | 1 1 1 . . . Energy Cannon . | . . . . . . Ballistic Gun 12 | 3 4 1 3 . 1 Ballistic Cannon 3 | . . . 2 . 1 Launcher 3 | . . 1 . . 2 Special Weapon . | . . . . . . Impact Weapon 1 | . . . . . 1 Slashing Weapon . | . . . . . . Piercing Weapon . | . . . . . . Special Melee Weapon . | . . . . . . Unidentified Prototypes . | . . . . . . Parts Lost 24 | . 4 5 1 . 14 Power 4 | . 1 . 1 . 2 Propulsion 8 | . 1 2 . . 5 Utility 7 | . 1 . . . 6 Weapon 5 | . 1 3 . . 1 Highest Loss Streak 12 | . 2 1 1 . 12 To Critical Strikes . | . . . . . . Average Slot Usage (%) 93 | . 93 87 98 100 81 Engine 8 | . 13 11 . . . Core 2 | . . . 7 7 4 Treads 25 | . 26 21 27 30 24 Device 1 | . 2 . . . 2 Storage 11 | . 12 11 9 7 7 Processor 17 | . 7 21 26 30 24 Protection 2 | . . . 9 7 2 Energy Gun 2 | . 1 8 . . . Ballistic Gun 16 | . 26 10 8 7 3 Ballistic Cannon 2 | . . . 9 7 5 Naked Turns . | . . . . . . Heaviest Build 104 | 11 89 93 102 102 104 Greatest Support 80 | 40 40 40 60 80 80 Greatest Overweight (x) 27 | 3 6 4 1 1 27 Average Overweight (x) 1 | 1 . 2 1 1 1 Largest Inventory Capacity 25 | 8 25 25 25 25 25 Average Capacity 19 | 6 11 25 25 25 25 Most Carried 25 | 2 13 13 25 25 25 Average Carried 12 | 1 6 11 20 23 21 Final Capacity 25 | 8 25 25 25 25 25 Final Carried 25 | 2 11 12 25 24 18 Class Distribution -------------------- 100% | Mutant Dominant Class ---------------- Mutant | -10/Materials Mutant | -9/Materials Mutant | -8/Materials Mutant | -7/Factory Mutant | -7/DSF Resources | -11 -10 -9 -8 -7 -7 ----------- Run | Yrd Mat Mat Mat Fac DSF Matter Collected 1436 | 215 495 143 512 . 71 Remotely . | . . . . . . Salvage Created 1850 | . 493 637 528 . 192 Parts 127 | . 41 43 37 . 6 Haulers Intercepted . | . . . . . . Recyclers Shooed . | . . . . . . Parts Field Recycled . | . . . . . . Retrieved Matter . | . . . . . . Parts Self-Destructed . | . . . . . . Prevented . | . . . . . . Kills | -11 -10 -9 -8 -7 -7 ------- Run | Yrd Mat Mat Mat Fac DSF Combat Hostiles Destroyed 50 | . 12 15 13 . 10 Melee 6 | . 1 . . . 5 Guns 29 | . 11 14 4 . . Cannons 10 | . . . 9 . 1 AOE 5 | . . 1 . . 4 Classes Destroyed 10 | . 4 2 2 . 2 Worker 3 | . . 1 2 . . Builder 1 | . 1 . . . . Operator 1 | . . . 1 . . Watcher 6 | . 3 . 3 . . Swarmer 5 | . 2 3 . . . Grunt 28 | . 10 8 10 . . Sentry 6 | . . 4 2 . . Specialist 1 | . . . . . 1 Hunter 1 | . . . 1 . . Assembled 9 | . . . . . 9 Best Kill Streak 7 | . 4 6 4 . 7 Combat Bots Only 7 | . 3 5 3 . 7 Max Kills in Single Turn 2 | . 1 2 1 . 1 Gunslinging . | . . . . . . Exploded 1 | . . 1 . . 1 Melee 1 | . 1 . . . 1 Uniques/NPCs Destroyed . | . . . . . . Combat | -11 -10 -9 -8 -7 -7 -------- Run | Yrd Mat Mat Mat Fac DSF Hostile Shots Fired 415 | . 101 101 73 . 140 Missed 106 | . 24 27 22 . 33 Damage Taken 4558 | . 876 933 641 . 2108 Core 1141 | . 140 247 45 . 709 Absorbed by Shields . | . . . . . . Regen/Repaired (Parts) 99 | . . . 99 . . Core Remaining (%) 68 | 100 44 38 91 . . Volleys Fired 139 | . 43 48 39 . 9 Largest 2 | . 2 2 2 . 2 Hottest 88 | . 40 60 88 . 76 Shots Fired 266 | . 86 89 78 . 13 Gun 205 | . 86 87 28 . 4 Cannon 54 | . . . 50 . 4 Launcher 7 | . . 2 . . 5 Special . | . . . . . . Kinetic 218 | . 86 46 78 . 8 Thermal 41 | . . 41 . . . Explosive 2 | . . 2 . . . Electromagnetic 5 | . . . . . 5 Robot Hit Streak 21 | . 6 21 20 . 5 Robot Miss Streak 8 | . 3 3 8 . 2 Penetration Max 1 | . . . . . 1 Secondary Targets 5 | . 3 2 . . . Max Gunslinging Chain 1 | . 1 1 . . . Shots Hit Robots 205 | . 58 70 61 . 16 Core Hits 149 | . 28 32 73 . 16 Critical Kills 2 | . . . 1 . 1 Critical Parts Destroyed 3 | . . . 1 . 2 Critical Strikes 5 | . . . 2 . 3 Destroy 2 | . . . 2 . . Smash 3 | . . . . . 3 Melee Attacks 10 | . . . . . 10 Impact 10 | . . . . . 10 Slashing . | . . . . . . Piercing . | . . . . . . Sneak Attacks . | . . . . . . Combat Hostiles . | . . . . . . Follow-up Attacks . | . . . . . . Damage Inflicted 3429 | . 711 773 1178 . 767 Guns 1769 | . 688 717 323 . 41 Cannons 960 | . . . 855 . 105 Explosions 272 | . . 41 . . 231 Melee 390 | . . . . . 390 Ramming 38 | . 23 15 . . . Kinetic 2342 | . 688 330 1178 . 146 Thermal 387 | . . 387 . . . Explosive 41 | . . 41 . . . Electromagnetic 231 | . . . . . 231 Impact 390 | . . . . . 390 Slashing . | . . . . . . Piercing . | . . . . . . Highest Corruption 2 | . . . . . 2 Average Corruption 1 | . . . . . 1 Corruption Purged . | . . . . . . Corruption Blocked . | . . . . . . Effects 1 | . . . . . 1 Heat Flow Errors 1 | . . . . . 1 Overload Shots . | . . . . . . Overflow Damage 120 | . . . . . 120 Projectiles . | . . . . . . Explosions . | . . . . . . Melee 120 | . . . . . 120 Knockbacks 31 | . . . 31 . . Impact . | . . . . . . Kinetic 30 | . . . 30 . . Secondary 1 | . . . 1 . . Self-Inflicted Damage 76 | . . 54 . . 22 Shots 3 | . . 2 . . 1 Rammed 6 | . 4 2 . . . Targets Rammed 7 | . 5 2 . . . Kicked . | . . . . . . Crushed 1 | . 1 . . . . Highest Temperature 270 | . 15 55 270 . 168 Average Temperature 46 | . 6 20 66 . 88 Received Heat Transfer 1535 | . 453 378 324 . 380 Siege Activations . | . . . . . . Robots Corrupted . | . . . . . . Combat Hostiles . | . . . . . . Parts Fried . | . . . . . . Impact Corruptions 4 | . . . . . 4 Robots Melted . | . . . . . . Combat Hostiles . | . . . . . . Parts Melted . | . . . . . . Heat Transferred 875 | . . 875 . . . Parts Sabotaged . | . . . . . . Parts Stolen . | . . . . . . Parts Stripped . | . . . . . . Power Chain Reactions . | . . . . . . Alert | -11 -10 -9 -8 -7 -7 ------- Run | Yrd Mat Mat Mat Fac DSF Peak Influence 240 | . 105 240 212 76 93 Initial 76 | . . . 17 76 53 Average 53 | . 34 55 86 76 55 Maximum Alert Level 1 | . . 1 1 . . Low Security (%) 97 | 100 100 95 95 100 100 Level 1 2 | . . 4 4 . . Level 2 . | . . . . . . Level 3 . | . . . . . . Level 4 . | . . . . . . Level 5 . | . . . . . . High Security . | . . . . . . Max Security . | . . . . . . Squads Dispatched 16 | . 7 3 4 . 2 Investigation 7 | . 3 2 2 . . Extermination . | . . . . . . Reinforcement 8 | . 4 1 1 . 2 Assault . | . . . . . . Garrison 1 | . . . 1 . . Intercept . | . . . . . . Searches Triggered . | . . . . . . Construction Impeded . | . . . . . . Haulers Reinforced . | . . . . . . Active Scanning Responses . | . . . . . . Cargo Convoy Interrupts . | . . . . . . Stealth | -11 -10 -9 -8 -7 -7 --------- Run | Yrd Mat Mat Mat Fac DSF Distress Signals 2 | . . 2 . . . Communications Jammed . | . . . . . . Distress Signals . | . . . . . . Times Spotted 91 | . 20 21 20 . 30 Peak Tracking Total 15 | . 4 8 3 . 15 Tactical Retreats 5 | . . 1 2 . 2 Traps | -11 -10 -9 -8 -7 -7 ------- Run | Yrd Mat Mat Mat Fac DSF Traps Triggered 7 | . 4 1 1 . 1 Indirectly 1 | . . . . . 1 Trap Hack Attempts . | . . . . . . Triggered . | . . . . . . Disarmed . | . . . . . . Reprogrammed . | . . . . . . Reused . | . . . . . . Traps Extracted . | . . . . . . Installed . | . . . . . . Triggered . | . . . . . . Machines | -11 -10 -9 -8 -7 -7 ---------- Run | Yrd Mat Mat Mat Fac DSF Machines Disabled . | . . . . . . Max in Single Turn . | . . . . . . Machines Repaired . | . . . . . . Machines Dismantled . | . . . . . . Machines Sabotaged . | . . . . . . Overloaded Fab Kills . | . . . . . . Hacking | -11 -10 -9 -8 -7 -7 --------- Run | Yrd Mat Mat Mat Fac DSF Machines Accessed 9 | . 5 1 2 1 . Terminals 6 | . 4 1 . 1 . Fabricators . | . . . . . . Repair Stations 1 | . . . 1 . . Recycling Units 1 | . 1 . . . . Scanalyzers 1 | . . . 1 . . Garrison Access . | . . . . . . Total Hacks 30 | . 15 4 9 2 . Successful 17 | . 7 2 7 1 . Failed 13 | . 8 2 2 1 . Catastrophic 3 | . 2 1 . . . Database Lockouts . | . . . . . . Manual 9 | . 6 3 . . . Terminals 17 | . 11 4 . 2 . Fabricators . | . . . . . . Repair Stations 5 | . . . 5 . . Recycling Units 4 | . 4 . . . . Scanalyzers 4 | . . . 4 . . Garrison Access . | . . . . . . Terminal Hacks 5 | . 2 2 . 1 . Record 2 | . . 2 . . . Open DSF 1 | . . . . 1 . Unreport Threat 1 | . 1 . . . . Recall Investigation 1 | . 1 . . . . Fabricator Hacks . | . . . . . . Repair Station Hacks 4 | . . . 4 . . Scan Component 3 | . . . 3 . . Repair 1 | . . . 1 . . Recycling Unit Hacks 3 | . 3 . . . . Recycle Component 2 | . 2 . . . . Process 1 | . 1 . . . . Scanalyzer 3 | . . . 3 . . Insert Component 1 | . . . 1 . . Analyze 2 | . . . 2 . . Garrison Access Hacks . | . . . . . . Unauthorized Hacks 2 | . 2 . . . . Terminals 2 | . 2 . . . . Botnet 2 | . 2 . . . . Fabricators . | . . . . . . Repair Stations . | . . . . . . Recycling Units . | . . . . . . Scanalyzers . | . . . . . . Garrison Access . | . . . . . . Data Cores Recovered . | . . . . . . Used . | . . . . . . Hacking Detections 7 | . 5 1 1 . . Full Trace Events 4 | . 2 1 1 . . Feedback Events . | . . . . . . Feedback Blocked . | . . . . . . Robot Schematics Acquired . | . . . . . . Robots Built . | . . . . . . Authchips . | . . . . . . Time . | . . . . . . Total Robot Build Rating . | . . . . . . Part Schematics Acquired 1 | . . . 1 . . Parts Built . | . . . . . . Authchips . | . . . . . . Time . | . . . . . . Total Part Build Rating . | . . . . . . Parts Repaired 1 | . . . 1 . . Time 26 | . . . 26 . . Parts Recycled 2 | . 2 . . . . Recycled Matter 181 | . 181 . . . . Retrieved Matter . | . . . . . . Retrieved Components . | . . . . . . Parts Scanalyzed 1 | . . . 1 . . Part Schematics Acquired 1 | . . . 1 . . Parts Damaged . | . . . . . . Bothacking | -11 -10 -9 -8 -7 -7 ------------ Run | Yrd Mat Mat Mat Fac DSF Used RIF Installer . | . . . . . . Robots Hacked . | . . . . . . Non-combat . | . . . . . . Combat . | . . . . . . Robot Hacks Applied . | . . . . . . Relay Couplers Released . | . . . . . . Fabnet Peak Effective % . | . . . . . . Robots Rewired . | . . . . . . Allies Hacked . | . . . . . . Hacks Repelled . | . . . . . . Allies | -11 -10 -9 -8 -7 -7 -------- Run | Yrd Mat Mat Mat Fac DSF Total Allies . | . . . . . . Largest Group . | . . . . . . Highest-Rated Group . | . . . . . . Highest-Rated Ally . | . . . . . . Total Orders . | . . . . . . Ally Attacks . | . . . . . . Total Damage . | . . . . . . Kills . | . . . . . . Allies Corrupted . | . . . . . . Allies Melted . | . . . . . . Intel | -11 -10 -9 -8 -7 -7 ------- Run | Yrd Mat Mat Mat Fac DSF Robot Analysis Total . | . . . . . . Derelict Logs Recovered . | . . . . . . Drone Launches . | . . . . . . Drone Recoveries . | . . . . . . Exploration | -11 -10 -9 -8 -7 -7 ------------- Run | Yrd Mat Mat Mat Fac DSF Turns Passed 5425 | 113 2294 1338 1320 198 162 Spaces Moved 1704 | 56 761 362 410 80 35 Core 82 | 24 57 . . . 1 Treads 1555 | 32 637 362 410 80 34 Legs 67 | . 67 . . . . Wheels . | . . . . . . Hover . | . . . . . . Flight . | . . . . . . Fastest Speed 50 | 50 100 320 240 242 240 Average Speed 230 | 163 181 325 242 242 274 Slowest Speed 1400 | 200 350 480 243 242 1400 Overloaded Moves . | . . . . . . Propulsion Burnouts . | . . . . . . Robots Hopped . | . . . . . . Cave-ins Triggered . | . . . . . . Exploration Rate (%) 34 | 5 85 30 35 2 47 Regions Visited 5 Branch Regions . Pre-discovered Areas . | . . . . . . Known Exits Taken 1 | . . . . 1 . Unknown Exits Taken 4 | 1 1 1 1 . . Scrap Searched . | . . . . . . Spaces Dug . | . . . . . . Terrain Destroyed 20 | . . 20 . . . Melee . | . . . . . . Projectile . | . . . . . . AOE 20 | . . 20 . . . Terrain Rammed . | . . . . . . Walls Destroyed . | . . . . . . Machines Disabled . | . . . . . . Actions | -11 -10 -9 -8 -7 -7 --------- Run | Yrd Mat Mat Mat Fac DSF Total 2905 | 74 1579 437 662 85 68 Wait 918 | 8 722 7 175 3 3 Move 1700 | 55 760 362 409 79 35 Hop . | . . . . . . Pick Up 42 | 2 16 6 17 1 . Fast Attach 34 | 7 16 5 6 . . Attach 13 | . 3 2 2 2 4 Detach 4 | . 1 . 3 . . Swap 13 | 1 4 1 3 . 4 Drop 26 | 1 9 5 8 . 3 Fire 139 | . 43 48 39 . 9 Melee 10 | . . . . . 10 Ram . | . . . . . . Kick . | . . . . . . Crush 6 | . 5 1 . . . Escape Stasis . | . . . . . . Rewire . | . . . . . . Trap . | . . . . . . Miscellaneous . | . . . . . . Route ------- -11/Scrapyard -10/Materials (discovered 4 exits: *Mat x2 / [*Min x2]) -9/Materials (discovered 3 exits: *Mat / [*Min x2]) -8/Materials -7/Factory -7/DSF (discovered 1 exit: [*Fac]) History --------- Turn | Location | Event 12 | -11/Scrapyard | Discovered new exit (range 15) 114 | -11/Scrapyard | Entered Materials 316 | -10/Materials | Build established: Mutant 548 | -10/Materials | Discovered new exit (range 10) 1207 | -10/Materials | Discovered new exit (range 8) 1646 | -10/Materials | Discovered new exit (range 9) 2135 | -10/Materials | Discovered new exit (range 10) 2208 | -10/Materials | Core integrity fell below 50% 2408 | -10/Materials | Entered another Materials area 2408 | -9/Materials | Evolved 2 slots: Utility x2 2622 | -9/Materials | Discovered new exit (range 13) 2967 | -9/Materials | Discovered new exit (range 14) 3595 | -9/Materials | Core integrity fell below 50% 3723 | -9/Materials | Discovered new exit (range 6) 3746 | -9/Materials | Entered another Materials area 3746 | -8/Materials | Evolved 2 slots: Propulsion x1, Utility x1 5024 | -8/Materials | Repaired Lgt. Treads 5043 | -8/Materials | Garrison activated, responded to threat 5046 | -8/Materials | Discovered new exit (range 5) 5066 | -8/Materials | Entered Factory 5066 | -7/Factory | Evolved 2 slots: Propulsion x1, Utility x1 5261 | -7/Factory | Identified exit to DSF 5264 | -7/Factory | Entered DSF 5274 | -7/DSF | Assembled infested the area 5292 | -7/DSF | Additional patrols routed to DSF 5341 | -7/DSF | Discovered new exit (range 16) 5406 | -7/DSF | Destroyed 7 combat bots 5415 | -7/DSF | Core integrity fell below 50% 5422 | -7/DSF | Core integrity fell below 20% 5426 | -7/DSF | Destroyed by as-62021 with Assembled Blade Last Messages --------------- 05401_ as-09571 destroyed. 05403_ Lgt. Treads destroyed. 05406_ Target Analyzer destroyed. 05406_ System corrupted by crushing effect (+1). 05406_ as-69401 destroyed. 05408_ The unstable cave ceiling collapses. 05409_ as-37275 suffers critical hit (Smash). 05409_ Destroyed Asb. Hover Unit. 05409_ as-37275 system corrupted by crushing effect. 05409_ as-37275 destroyed. 05410_ Deuterium Engine destroyed. 05413_ Great Maul destroyed. 05413_ as-38206 suffers critical hit (Burn). 05414_ ALERT: Infestation has breached DSF, dispatching Demolisher response squad. 05415_ The unstable cave ceiling collapses. 05417_ as-38206 destroyed. 05418_ The unstable cave ceiling collapses. 05423_ as-55457 destroyed. Map ----- +----------------------------------------------------+ | ?????????????????????????????????????????? | | ?????????##??????????????????????????????? | | ?????????""#?????????????????????????????? | | ?????????#"#?????????????????????????????? | | ??????####"##????????????????????????????? | | ??????#"""""#?###????????????????????????? | | ??????#"""""##]]# #!! ???????????????? | | ????"##"" ???????????????? | | ????""""" [ ???????????????? | | ????###"" [%##]]#]]]###??????????????????? | | ??????### ##???#??????? ????????????????? | | ???????## ###???????????????????????????? | | ???????#] []#???????????????????????????? | | ???????#] []]#???????????????????????????? | | ???????## [###?????????????##????????????? | | ???????#] ]]#??#?????????!!#????????????? | | ???????#] ]]#??????????? !!#????????????? | | ???????#] ]]#??????? ?? !!?????????????? | | ??#???### ##########?? #?????#????????? | | ?????##!!%%## #!! ### ##?????????????? | | ?????#"!! ## ! # % a##===#????????? | | ?????##// a % ???????? | | ??????#// % a% ???????? | | ??????#// a*]%! !!!% ???????? | | ??????# ##!!!#aaa a%*!%##!!!#????????? | | ??#???# ##!!!#@a=# ###???#????????? | | ??#???### ######a#% # #??????????????? | | ????????= =????##% % !!#????????????? | | ???????#= =??????![%%%* !!#????????????? | | ???????#= =??????# # = !#????????????? | | ???????## =##????? ###????????????? | | ????????= !*??????# #!! #????????????? | | ????????= !!???????##!! #????????????? | | ???????## #??????#??!! #????????????? | | ????????# ??????????##" ###????????????? | | ????????? ????????????%" #??????????????? | | ????????? ?????? ????? ??????????????? | | ?????????< ????????????? ???????????????? | | ?????????????????????????????????????????? | | ?????????????????????????????????????????? | | ?????????????????????????????????????????? | | ?????????????????????????????????????????? | | ?????????????????????????????????????????? | | ?????????????????????????????????????????? | | ?????????????????????????????????????????? | | ?????????????????????????????????????????? | | ?????????????????????????????????????????? | | ?????????????????????????????????????????? | | | | | +----------------------------------------------------+ Best States ------------- Heat Dissipation 34 Energy Generation 14 Energy Capacity 275 Matter Stores 300 Matter Capacity 300 Sight Range 18 Robot Scan Range 14 Terrain Scan Range 16 Terrain Scan Density 10 Armor Coverage 225 Evasion (%) 55 Targeting Accuracy 10 Target Analysis 7 Recoil Reduction 4 Item Schematics ----------------- Deuterium Engine | -8/Materials | Scanalyzed Robot Schematics ------------------ None Fabricated ------------ Nothing Alien Tech Used ----------------- None Achievements -------------- GoHome() Made in Tau Ceti IV More Dakka Please Please Form A Line True Hacker Challenges ------------ None Game ------ Seed BackupMobileMultirail Manual? 0 Play Time 00:48:35 Cumulative 3.6 hours Start 2024.04.07 @ 15:52:43 End 2024.04.08 @ 11:22:09 Sessions 2 Manual Loads 0 Difficulty Rogue Special Mode None Game No. 11 Rogue 9 Adventurer 0 Explorer 2 Win Type - Total 0 Types 0/0/0/0/0/0/0/0/0 Lore% 3 Gallery% 7 Achievement% 11 Wizard Run 0 Options --------- Layout 1 ASCII 0 Keyboard 1 Movement Vi Keybinds 0 Fullscreen 1 Font 32/SmallcapsGlow Map View 50x35 Zoom Use 0% Tactical HUD 1 Map Filters NONE Filters NONE Steam 1 RUN: 37e72ee6-c7e1-4664-96ff-912f75f1a7c1